Cogmind - Beta 13 @@@ ROGUE MODE // 2024.04.16 @ 14:12:09 Player: Pyry Result: Destroyed by Y-45 Defender with Beam Rifle Performance ------------- Evolutions (1) 500 Regions Visited (2) 400 Robots Destroyed (56) 280 Value Destroyed (1126) 1126 Prototype IDs (4) 80 Alien Tech Used (0) 0 Bonus (39) 39 TOTAL SCORE: 2425 Bonus ------- High Alert Combat Kills 39 Cogmind --------- Core Integrity 0/400 Matter 191/300 Energy 75/100 System Corruption 2% Temperature Cool (9) Movement Rolling (80) Location -9/Materials Parts ------- > --- POWER (2) -------- (None) > --- PROPULSION (2) --- Wheel Wheel > --- UTILITY (3) ------ Large Storage Unit > --- WEAPON (2) ------- (None) > --- INVENTORY (15) --- Light Treads Wheel Wheel Wheel Compact Wheel Large Storage Unit Core Shielding Heavy EM Pulse Gun Small Laser Beam Rifle Mining Laser Mining Claw Peak State ------------ > --- POWER ------------ Ion Engine Light Nuclear Core > --- PROPULSION ------- Light Treads Light Treads > --- UTILITY ---------- Large Storage Unit Seismic Detector Hardened Light Armor Plating > --- WEAPON ----------- Heavy Assault Rifle Light Cannon > --- INVENTORY -------- Light Treads Light Treads Wheel Wheel Wheel Wheel Wheel Compact Wheel Large Storage Unit Core Shielding Heavy EM Pulse Gun Small Laser Beam Rifle Mining Laser Mining Claw [Rating: 14] Favorites ----------- Power Ion Engine Engine Ion Engine Power Core Light Nuclear Core Propulsion Aluminum Leg Treads Light Treads Leg Aluminum Leg Wheel Wheel Utility Large Storage Unit Device Sensor Array Storage Large Storage Unit Protection Hardened Light Armor Plating Weapon Light Cannon Energy Gun Heavy EM Pulse Gun Ballistic Gun Heavy Assault Rifle Ballistic Cannon Light Cannon Launcher Grenade Launcher Build | -11 -10 -9 ------- Run | Yrd Mat Mat Slots Evolved 2 | . . 2 Power 1 | . . 1 Propulsion . | . . . Utility 1 | . . 1 Weapon . | . . . Parts Attached 53 | 5 23 25 Power 14 | 1 6 7 Engine 13 | 1 6 6 Core 1 | . . 1 Reactor . | . . . Propulsion 17 | 2 6 9 Treads 3 | . . 3 Leg 5 | . 3 2 Wheel 9 | 2 3 4 Hover . | . . . Flight . | . . . Utility 6 | . 4 2 Device 4 | . 3 1 Storage 1 | . 1 . Processor . | . . . Hackware . | . . . Protection 1 | . . 1 Artifact . | . . . Weapon 16 | 2 7 7 Energy Gun 8 | 1 5 2 Energy Cannon . | . . . Ballistic Gun 3 | 1 . 2 Ballistic Cannon 3 | . 1 2 Launcher 2 | . 1 1 Special Weapon . | . . . Impact Weapon . | . . . Slashing Weapon . | . . . Piercing Weapon . | . . . Special Melee Weapon . | . . . Unidentified Prototypes 1 | . . 1 Corrupted Parts 1 | . . 1 System Corruption 2 | . . 2 Parts Lost 25 | . 11 14 Power 7 | . 2 5 Propulsion 7 | . 4 3 Utility 2 | . . 2 Weapon 9 | . 5 4 Highest Loss Streak 7 | . 3 7 To Critical Strikes 2 | . 1 1 Average Slot Usage (%) 87 | . 85 91 Engine 15 | . 12 18 Treads 4 | . . 11 Leg 11 | . 15 6 Wheel 5 | . 8 1 Device 13 | . 13 13 Storage 11 | . 11 11 Protection 2 | . . 5 Energy Gun 9 | . 14 3 Ballistic Gun 5 | . 3 7 Ballistic Cannon 5 | . 3 9 Launcher 1 | . 1 . Naked Turns . | . . . Heaviest Build 42 | 7 32 42 Greatest Support 40 | 20 20 40 Greatest Overweight (x) 11 | . 8 11 Average Overweight (x) . | . . . Largest Inventory Capacity 15 | 5 15 15 Average Capacity 13 | 5 13 15 Most Carried 15 | 5 14 15 Average Carried 10 | 2 9 13 Final Capacity 15 | 5 15 15 Final Carried 13 | 4 13 12 Class Distribution -------------------- 57% | Mutant 42% | Scavenger-Mutant Dominant Class ---------------- Mutant | -10/Materials Scavenger-Mutant | -9/Materials Resources | -11 -10 -9 ----------- Run | Yrd Mat Mat Matter Collected 970 | 265 220 485 Remotely . | . . . Salvage Created 1345 | 51 517 777 Parts 113 | 3 47 63 Haulers Intercepted 1 | . . 1 Recyclers Shooed 2 | . 1 1 Parts Field Recycled . | . . . Retrieved Matter . | . . . Parts Self-Destructed . | . . . Prevented . | . . . Kills | -11 -10 -9 ------- Run | Yrd Mat Mat Combat Hostiles Destroyed 37 | 1 17 19 Guns 21 | 1 13 7 Cannons 12 | . 2 10 AOE 4 | . 2 2 Classes Destroyed 9 | 2 5 2 Worker 3 | . 2 1 Builder 9 | . 3 6 Tunneler 1 | 1 . . Hauler 1 | . . 1 Recycler 2 | . 1 1 Watcher 3 | . 2 1 Swarmer 14 | . 9 5 Grunt 19 | 1 8 10 Sentry 4 | . . 4 Best Kill Streak 12 | 2 12 5 Combat Bots Only 4 | 1 3 4 Max Kills in Single Turn 4 | 2 2 4 Gunslinging . | . . . Exploded 1 | . 1 1 Melee . | . . . Uniques/NPCs Destroyed . | . . . Combat | -11 -10 -9 -------- Run | Yrd Mat Mat Hostile Shots Fired 362 | 8 140 214 Missed 114 | 6 38 70 Damage Taken 2672 | 23 1032 1617 Core 609 | . 203 406 Absorbed by Shields . | . . . Core Remaining (%) 59 | 100 18 . Volleys Fired 146 | 5 70 71 Largest 2 | 2 2 2 Hottest 90 | 70 90 80 Shots Fired 227 | 10 107 110 Gun 158 | 10 87 61 Cannon 46 | . 5 41 Launcher 23 | . 15 8 Special . | . . . Kinetic 119 | 5 32 82 Thermal 30 | 5 25 . Explosive 23 | . 15 8 Electromagnetic 55 | . 35 20 Robot Hit Streak 11 | 3 4 11 Robot Miss Streak 7 | 2 7 6 Penetration Max . | . . . Secondary Targets . | . . . Shots Hit Robots 116 | 6 47 63 Core Hits 74 | 3 31 40 Critical Kills . | . . . Critical Parts Destroyed . | . . . Critical Strikes 3 | 1 1 1 Burn 1 | 1 . . Blast 1 | . . 1 Corrupt 1 | . 1 . Melee Attacks . | . . . Impact . | . . . Slashing . | . . . Piercing . | . . . Sneak Attacks . | . . . Combat Hostiles . | . . . Follow-up Attacks . | . . . Damage Inflicted 3102 | 109 1280 1713 Guns 1245 | 109 510 626 Cannons 490 | . 63 427 Explosions 1367 | . 707 660 Melee . | . . . Ramming . | . . . Kinetic 1072 | 46 180 846 Thermal 312 | 63 190 59 Explosive 1284 | . 683 601 Electromagnetic 434 | . 227 207 Impact . | . . . Slashing . | . . . Piercing . | . . . Highest Corruption 2 | . . 2 Average Corruption 2 | . . 2 Corruption Purged . | . . . Corruption Blocked . | . . . Effects 10 | . . 10 Matter Fused 4 | . . 4 Heat Flow Errors 2 | . . 2 Data Loss (minor) 1 | . . 1 Weapon Failures 3 | . . 3 Overload Shots . | . . . Overflow Damage 61 | . 42 19 Projectiles . | . . . Explosions 61 | . 42 19 Melee . | . . . Knockbacks 4 | . 1 3 Impact . | . . . Kinetic 4 | . 1 3 Secondary . | . . . Self-Inflicted Damage 87 | . 59 28 Shots 6 | . 5 1 Rammed . | . . . Targets Rammed . | . . . Kicked . | . . . Crushed . | . . . Highest Temperature 268 | 57 268 234 Average Temperature 74 | 30 95 66 Received Heat Transfer 783 | 12 312 459 Siege Activations . | . . . Robots Corrupted . | . . . Combat Hostiles . | . . . Parts Fried 1 | . 1 . Impact Corruptions . | . . . Robots Melted . | . . . Combat Hostiles . | . . . Parts Melted 1 | 1 . . Heat Transferred 784 | 259 425 100 Parts Sabotaged . | . . . Parts Stolen . | . . . Parts Stripped . | . . . Power Chain Reactions 2 | . 1 1 Alert | -11 -10 -9 ------- Run | Yrd Mat Mat Peak Influence 550 | 25 365 550 Initial 122 | . 16 122 Average 259 | 2 247 301 Maximum Alert Level 2 | . 1 2 Low Security (%) 26 | 100 22 24 Level 1 65 | . 77 55 Level 2 8 | . . 20 Level 3 . | . . . Level 4 . | . . . Level 5 . | . . . High Security . | . . . Max Security . | . . . Squads Dispatched 7 | . 4 3 Investigation 3 | . 2 1 Extermination . | . . . Reinforcement 4 | . 2 2 Assault . | . . . Garrison . | . . . Intercept . | . . . Searches Triggered . | . . . Construction Impeded 1 | . . 1 Haulers Reinforced . | . . . Active Scanning Responses . | . . . Cargo Convoy Interrupts . | . . . Stealth | -11 -10 -9 --------- Run | Yrd Mat Mat Distress Signals 2 | . 1 1 Communications Jammed . | . . . Distress Signals . | . . . Times Spotted 57 | 1 27 29 Peak Tracking Total 6 | 1 3 6 Tactical Retreats 3 | . 2 1 Traps | -11 -10 -9 ------- Run | Yrd Mat Mat Traps Triggered 2 | . 1 1 Indirectly . | . . . Trap Hack Attempts . | . . . Triggered . | . . . Disarmed . | . . . Reprogrammed . | . . . Reused . | . . . Traps Extracted . | . . . Installed . | . . . Triggered . | . . . Machines | -11 -10 -9 ---------- Run | Yrd Mat Mat Machines Disabled 3 | . 2 1 Max in Single Turn 1 | . 1 1 Machines Repaired . | . . . Machines Dismantled . | . . . Machines Sabotaged . | . . . Overloaded Fab Kills . | . . . Hacking | -11 -10 -9 --------- Run | Yrd Mat Mat Machines Accessed 9 | . 8 1 Terminals 6 | . 6 . Fabricators . | . . . Repair Stations . | . . . Recycling Units 3 | . 2 1 Scanalyzers . | . . . Garrison Access . | . . . Total Hacks 37 | . 34 3 Successful 24 | . 22 2 Failed 13 | . 12 1 Catastrophic 2 | . 2 . Database Lockouts . | . . . Manual . | . . . Terminals 17 | . 17 . Fabricators . | . . . Repair Stations . | . . . Recycling Units 20 | . 17 3 Scanalyzers . | . . . Garrison Access . | . . . Terminal Hacks 9 | . 9 . Record 3 | . 3 . Robot Analysis 1 | . 1 . Prototype ID Bank 1 | . 1 . Alert Level 1 | . 1 . Dispatch Records 1 | . 1 . Recall Investigation 1 | . 1 . Hauler Manifests 1 | . 1 . Fabricator Hacks . | . . . Repair Station Hacks . | . . . Recycling Unit Hacks 15 | . 13 2 Recycle Component 6 | . 6 . Process 3 | . 3 . Report Inventory 2 | . 1 1 Retrieve Matter 1 | . 1 . Retrieve Components 3 | . 2 1 Scanalyzer . | . . . Garrison Access Hacks . | . . . Unauthorized Hacks . | . . . Terminals . | . . . Fabricators . | . . . Repair Stations . | . . . Recycling Units . | . . . Scanalyzers . | . . . Garrison Access . | . . . Data Cores Recovered . | . . . Used . | . . . Hacking Detections 8 | . 8 . Full Trace Events 3 | . 3 . Feedback Events . | . . . Feedback Blocked . | . . . Robot Schematics Acquired . | . . . Robots Built . | . . . Authchips . | . . . Time . | . . . Total Robot Build Rating . | . . . Part Schematics Acquired . | . . . Parts Built . | . . . Authchips . | . . . Time . | . . . Total Part Build Rating . | . . . Parts Repaired . | . . . Time . | . . . Parts Recycled 6 | . 6 . Recycled Matter 226 | . 226 . Retrieved Matter 201 | . 201 . Retrieved Components 1 | . . 1 Parts Scanalyzed . | . . . Part Schematics Acquired . | . . . Parts Damaged . | . . . Bothacking | -11 -10 -9 ------------ Run | Yrd Mat Mat Used RIF Installer . | . . . Robots Hacked . | . . . Non-combat . | . . . Combat . | . . . Robot Hacks Applied . | . . . Relay Couplers Released . | . . . Fabnet Peak Effective % . | . . . Robots Rewired . | . . . Allies Hacked . | . . . Hacks Repelled . | . . . Allies | -11 -10 -9 -------- Run | Yrd Mat Mat Total Allies . | . . . Largest Group . | . . . Highest-Rated Group . | . . . Highest-Rated Ally . | . . . Total Orders . | . . . Ally Attacks . | . . . Total Damage . | . . . Kills . | . . . Allies Corrupted . | . . . Allies Melted . | . . . Intel | -11 -10 -9 ------- Run | Yrd Mat Mat Robot Analysis Total 1 | . 1 . Derelict Logs Recovered . | . . . Drone Launches . | . . . Drone Recoveries . | . . . Exploration | -11 -10 -9 ------------- Run | Yrd Mat Mat Turns Passed 2098 | 80 1171 847 Spaces Moved 1078 | 76 650 352 Core 56 | 32 22 2 Treads 201 | . . 201 Legs 388 | . 278 110 Wheels 433 | 44 350 39 Hover . | . . . Flight . | . . . Fastest Speed 50 | 50 80 80 Average Speed 147 | 67 142 171 Slowest Speed 600 | 80 450 600 Overloaded Moves . | . . . Propulsion Burnouts . | . . . Robots Hopped . | . . . Cave-ins Triggered . | . . . Exploration Rate (%) 41 | 7 83 33 Regions Visited 2 Branch Regions . Pre-discovered Areas . | . . . Known Exits Taken . | . . . Unknown Exits Taken 2 | 1 1 . Scrap Searched . | . . . Spaces Dug . | . . . Terrain Destroyed 168 | . 95 73 Melee . | . . . Projectile . | . . . AOE 168 | . 95 73 Terrain Rammed . | . . . Walls Destroyed . | . . . Machines Disabled . | . . . Actions | -11 -10 -9 --------- Run | Yrd Mat Mat Total 1359 | 94 783 482 Wait 8 | . 6 2 Move 1076 | 75 649 352 Hop . | . . . Pick Up 59 | 9 30 20 Fast Attach 3 | . 2 1 Attach 29 | 5 12 12 Detach . | . . . Swap 21 | . 9 12 Drop 17 | . 5 12 Fire 146 | 5 70 71 Melee . | . . . Ram . | . . . Kick . | . . . Crush . | . . . Escape Stasis . | . . . Rewire . | . . . Trap . | . . . Miscellaneous . | . . . Route ------- -11/Scrapyard -10/Materials (discovered 4 exits: *Mat x2 / [*Min x2]) -9/Materials (discovered 3 exits: [*Min] / [*Sto x2]) History --------- Turn | Location | Event 2 | -11/Scrapyard | Met Revision 17 55 | -11/Scrapyard | Discovered new exit (range 8) 81 | -11/Scrapyard | Entered Materials 327 | -10/Materials | Build established: Mutant 383 | -10/Materials | Lost 3 parts (1p1n1w) 596 | -10/Materials | Lost 3 parts (1p2n) 621 | -10/Materials | Discovered new exit (range 15) 811 | -10/Materials | Discovered new exit (range 11) 870 | -10/Materials | Discovered new exit (range 7) 913 | -10/Materials | Core integrity fell below 50% 992 | -10/Materials | Core integrity fell below 20% 1167 | -10/Materials | Discovered new exit (range 13) 1252 | -10/Materials | Entered another Materials area 1252 | -9/Materials | Evolved 2 slots: Power x1, Utility x1 1437 | -9/Materials | Discovered new exit (range 15) 1487 | -9/Materials | Core integrity fell below 50% 1502 | -9/Materials | Lost 7 parts (3p1n1u2w) 1857 | -9/Materials | Build established: Scavenger-Mutant 1931 | -9/Materials | Discovered new exit (range 11) 2029 | -9/Materials | Discovered new exit (range 13) 2085 | -9/Materials | Core integrity fell below 20% 2099 | -9/Materials | Destroyed by Y-45 Defender with Beam Rifle Last Messages --------------- Triggered Blade Trap. Massive razor-sharp blades shoot up from within the floor. Lgt. Treads severed. Hrd. Light Armor Plating severed. Ion Engine destroyed. R-06 Scavenger collects Lgt. Treads. U-05 Engineer lays Concrete. Seismic Detector destroyed. K-01 Serf collects debris. Processing Tank disabled. K-01 Serf collects debris. System corrupted: Matter fused (-7). Critical hit (Destroy). Lgt. Nuclear Core destroyed. K-01 Serf collects debris. S-10 Pest destroyed. K-01 Serf collects debris. Hvy. Assault Rifle destroyed. K-01 Serf collects debris. [Achievement: First Step to Greatness] Map ----- +----------------------------------------------------+ | ?????????????????????????????????## ##### #? | | ?????????????????????????????????# # #? | | ?????????????????????????????????# """ # #? | | ?????????????????????????????????# """ # # | | ???????????????????????########### """ + + | | ???????????????????????# # # # | | ???????????????????????# # """ # #######? | | ???????????????????????# # "" # ##?????? | | ???????????????????????# # """ # #???#### | | ???????????????????????# # # #### | | ???????????????????????# # " " # | | ???????????????###?????# # "R" + < | | ?????????????# ?????# # """* # | | ?????????????# % ?????#####+##### = [# ##" | | ?????????????/ < ???????# #######+## #????? | | ?????????????? ???????# !%= #????? | | ?????????????? ???????# *%[ % #????? | | ??????????????# ???????# ![=%= [ ! #????? | | ??????????????# #??????# %=%#######+#### #????? | | ??????????????# #??????## *!### ## #????? | | ??????????????# #???????# #?# ## #????? | | ??????????????# #???????# #?# ## #????? | | ??????????????# #???????# #?#""" ! ## #????? | | ??????????????# ######### ###""" ## #????? | | ??????????????# Y ##""" ## #????? | | ??????????????#^ =! @ ##""" =]! ## #????? | | ??????????????# *!a! ##"""% ]= ## #????? | | ??????????????# %^!!! """"" ## != ## ###??? | | ??????????????#^ s!!! """" ####%####### #??? | | ??????????????#r% ^^""""" #??##??????# #??? | | ??????????????#k ############ = #??? | | ????????? #??? | | ????????? !! #??? | | ????????? % ! #??? | | ????????? ################################ #??? | | ???????? ????????????????????????????????# #??? | | ???????? ?????????????????????????????????# % #??? | | ??????????????????????????????????????????# #??? | | ?????????????????????????????????????????? ! +??? | | ?????????????????????????????????????????? # ?? | | ?????????????????????????????????????????? # ?? | | ?????????????????????????????????????????? #?#? | | ?????????????????????????????????????????? #??? | | ????????????????????????????????????????? #??? | | ????????????????????????????????????????? #??? | | ?????????????????????????????????????????? #??? | | ?????????????????????????????????????????? ???? | | ?????????????????????????????????????????????????? | | ?????????????????????????????????????????????????? | | ?????????????????????????????????????????????????? | +----------------------------------------------------+ Best States ------------- Heat Dissipation 28 Energy Generation 19 Energy Capacity 400 Matter Stores 300 Matter Capacity 300 Sight Range 16 Robot Scan Range 14 Terrain Scan Density 10 ECM Strength 1 Armor Coverage 150 Evasion (%) 50 Recoil Reduction 2 Item Schematics ----------------- None Robot Schematics ------------------ None Fabricated ------------ Nothing Alien Tech Used ----------------- None Achievements -------------- Crack Shot First Step to Greatness Loot Pinata One Hack Too Far Risk Taker Shopping List Storm Trooper Uninvited Guest Challenges ------------ None Game ------ Seed HeavyPiercingDissipator Manual? 0 Play Time 00:33:00 Cumulative 0.5 hours Start 2024.04.16 @ 13:38:37 End 2024.04.16 @ 14:12:09 Sessions 1 Manual Loads 0 Difficulty Rogue Special Mode None Game No. 1 Rogue 1 Adventurer 0 Explorer 0 Win Type - Total 0 Types 0/0/0/0/0/0/0/0/0 Lore% 0 Gallery% 2 Achievement% 3 Wizard Run 0 Options --------- Layout 1 ASCII 0 Keyboard 0 Movement Mouse Keybinds 0 Fullscreen 1 Font 48/Smallcaps Map View 76x35 Zoom Use 0% Tactical HUD 0 Map Filters NONE Filters NONE Steam 1 RUN: bbfa4fa0-c828-44ee-8bbd-7d7e249074ea